fUSD/lending_fUSD_20251222
["ID","MTS","AMOUNT","RATE_DAILY","PERIOD"]
[399466638,1766383838776,-500.0,0.00013643,2]
[399466639,1766383838786,-500.0,0.00013643,2]
[399466640,1766383838796,-500.0,0.00013643,2]
[399466641,1766383838806,-169.3348032,0.00013643,2]
[399466642,1766383838816,-500.0,0.00013643,2]
[399466643,1766383838826,-176.72157044,0.00013643,2]
[399466644,1766383838835,-500.0,0.00013643,2]
[399466645,1766383838845,-500.0,0.00013643,2]
[399466646,1766383838854,-174.79667951,0.00013643,2]
[399466647,1766383838864,-167.17091754,0.00013643,2]
[399466648,1766383838874,-500.0,0.00013643,2]
[399466649,1766383838885,-500.0,0.00013643,2]
[399466650,1766383838894,-161.53823888,0.00013643,2]
[399466651,1766383838904,-500.0,0.00013643,2]
[399466652,1766383838914,-500.0,0.00013643,2]
[399466653,1766383838923,-165.58172588,0.00013643,2]
[399466654,1766383838933,-163.76931911,0.00013643,2]
[399466655,1766383838942,-500.0,0.00013643,2]
[399466656,1766383838953,-160.1870397,0.00013643,2]
[399466657,1766383838962,-500.0,0.00013643,2]
[399466658,1766383838972,-160.27643791,0.00013643,2]
[399466659,1766383838982,-165.8458301,0.00013643,2]
[399466660,1766383838993,-500.0,0.00013643,2]
[399466661,1766383839003,-500.0,0.00013643,2]
[399466662,1766383839013,-165.36365012,0.00013643,2]
[399466663,1766383839022,-500.0,0.00013643,2]
[399466664,1766383839031,-500.0,0.00013643,2]
[399466665,1766383839041,-500.0,0.00013643,2]
[399466666,1766383839050,-500.0,0.00013643,2]
[399466667,1766383839059,-500.0,0.00013643,2]
[399466668,1766383839068,-201.72114218,0.00013643,2]
[399466669,1766383839078,-500.0,0.00013643,2]
[399466670,1766383839087,-500.0,0.00013643,2]
[399466671,1766383839096,-500.0,0.00013643,2]
[399466672,1766383839106,-500.0,0.00013643,2]
[399466673,1766383839115,-216.339116,0.00013643,2]
[399466674,1766383839124,-500.0,0.00013643,2]
[399466675,1766383839134,-500.51901365,0.00013643,2]
[399466676,1766383839143,-168.65037374,0.00013643,2]
[399466677,1766383839153,-500.0,0.00013643,2]
[399466678,1766383839162,-500.0,0.00013643,2]
[399466679,1766383839171,-500.0,0.00013643,2]
[399466680,1766383839180,-165.49824072,0.00013643,2]
[399466681,1766383839189,-500.0,0.00013643,2]
[399466682,1766383839199,-162.91531541,0.00013643,2]
[399466683,1766383839209,-276.5402013,0.00013643,2]
[399466684,1766383839219,-500.0,0.00013643,2]
[399466685,1766383839229,-2146.93,0.00013643,2]
[399466686,1766383839238,-7683.37212936,0.0001365,2]
[399466687,1766383839247,-500.0,0.00013698,2]
[399466688,1766383839256,-500.0,0.00013698,2]
[399466689,1766383839266,-500.0,0.00013698,2]
[399466690,1766383839275,-500.0,0.00013698,2]
[399466691,1766383839286,-500.0,0.00013698,2]
[399466692,1766383839295,-500.0,0.00013698,2]
[399466693,1766383839305,-344.92521507,0.00013698,2]
[399466694,1766383839315,-500.0,0.00013698,2]
[399466695,1766383839324,-500.0,0.00013698,2]
[399466696,1766383839334,-500.0,0.00013698,2]
[399466697,1766383839343,-574.81599122,0.00013698,2]
[399466698,1766383839353,-500.0,0.00013698,2]
[399466699,1766383839362,-500.0,0.00013698,2]
[399466700,1766383839371,-534.39778007,0.00013698,2]
[399466701,1766383839380,-500.0,0.00013698,2]
[399466702,1766383839390,-500.0,0.00013698,2]
[399466703,1766383839399,-500.0,0.00013698,2]
[399466704,1766383839408,-500.0,0.00013698,2]
[399466705,1766383839417,-506.35570593,0.00013698,2]
[399466706,1766383839426,-500.0,0.00013698,2]
[399466707,1766383839436,-500.0,0.00013698,2]
[399466708,1766383839445,-500.0,0.00013698,2]
[399466709,1766383839454,-500.0,0.00013698,2]
[399466710,1766383839463,-500.0,0.00013698,2]
[399466711,1766383839472,-500.0,0.00013698,2]
[399466712,1766383839482,-500.0,0.00013698,2]
[399466713,1766383839492,-511.45544987,0.00013698,2]
[399466714,1766383839501,-500.0,0.00013698,2]
[399466715,1766383839511,-500.0,0.00013698,2]
[399466716,1766383839527,-500.0,0.00013698,2]
[399466717,1766383839536,-500.0,0.00013698,2]
[399466718,1766383839546,-500.0,0.00013698,2]
[399466719,1766383839555,-500.0,0.00013698,2]
[399466720,1766383839564,-500.0,0.00013698,2]
[399466721,1766383839573,-500.0,0.00013698,2]
[399466722,1766383839582,-500.0,0.00013698,2]
[399466723,1766383839594,-500.0,0.00013698,2]
[399466724,1766383839603,-500.0,0.00013698,2]
[399466725,1766383839612,-500.0,0.00013698,2]
[399466726,1766383839622,-500.0,0.00013698,2]
[399466727,1766383839631,-500.0,0.00013698,2]
[399466728,1766383839640,-500.0,0.00013698,2]
[399466729,1766383839650,-500.0,0.00013698,2]
[399466730,1766383839659,-500.0,0.00013698,2]
[399466731,1766383839669,-500.0,0.00013698,2]
[399466732,1766383839679,-500.0,0.00013698,2]
[399466733,1766383839688,-500.0,0.00013698,2]
[399466734,1766383839697,-500.0,0.00013698,2]
[399466735,1766383839706,-500.0,0.00013698,2]
[399466736,1766383839715,-500.0,0.00013698,2]
[399466737,1766383839724,-500.0,0.00013698,2]
[399466738,1766383839733,-500.0,0.00013698,2]
[399466739,1766383839743,-500.0,0.00013698,2]
[399466740,1766383839753,-500.0,0.00013698,2]
[399466741,1766383839763,-500.0,0.00013698,2]
[399466742,1766383839773,-500.0,0.00013698,2]
[399466743,1766383839787,-501.05282462,0.00013698,2]
[399466744,1766383839797,-500.0,0.00013698,2]
[399466745,1766383839806,-500.0,0.00013698,2]
[399466746,1766383839816,-500.0,0.00013698,2]
[399466747,1766383839825,-516.02053629,0.00013698,2]
[399466748,1766383839835,-500.0,0.00013698,2]
[399466749,1766383839844,-500.0,0.00013698,2]
[399466750,1766383839853,-500.0,0.00013698,2]
[399466751,1766383839863,-500.0,0.00013698,2]
[399466752,1766383839873,-500.0,0.00013698,2]
[399466753,1766383839882,-500.0,0.00013698,2]
[399466754,1766383839892,-500.0,0.00013698,2]
[399466755,1766383839901,-500.0,0.00013698,2]
[399466756,1766383839911,-500.0,0.00013698,2]
[399466757,1766383839921,-513.1625593,0.00013698,2]
[399466758,1766383839930,-500.0,0.00013698,2]
[399466759,1766383839939,-500.0,0.00013698,2]
[399466760,1766383839949,-500.0,0.00013698,2]
[399466761,1766383839960,-500.0,0.00013698,2]
[399466762,1766383839970,-500.0,0.00013698,2]
[399466763,1766383839980,-500.0,0.00013698,2]
[399466764,1766383839990,-500.0,0.00013698,2]
[399466765,1766383840000,-509.63742065,0.00013698,2]
[399466766,1766383840010,-500.0,0.00013698,2]
[399466767,1766383840022,-500.0,0.00013698,2]
[399466768,1766383840032,-500.0,0.00013698,2]
[399466769,1766383840042,-500.0,0.00013698,2]
[399466770,1766383840053,-500.0,0.00013698,2]
[399466771,1766383840063,-500.0,0.00013698,2]
[399466772,1766383840073,-500.0,0.00013698,2]
[399466773,1766383840083,-500.0,0.00013698,2]
[399466774,1766383840092,-500.0,0.00013698,2]
[399466775,1766383840102,-500.0,0.00013698,2]
[399466776,1766383840111,-281.94007823,0.00013698,2]
[399466777,1766383840122,-500.0,0.00013698,2]
[399466778,1766383840132,-500.0,0.00013698,2]
[399466779,1766383840142,-500.0,0.00013698,2]
[399466780,1766383840152,-500.0,0.00013698,2]
[399466781,1766383840162,-500.0,0.00013698,2]
[399466782,1766383840171,-500.0,0.00013698,2]
[399466783,1766383840181,-500.0,0.00013698,2]
[399466784,1766383840190,-500.0,0.00013698,2]
[399466785,1766383840199,-500.0,0.00013698,2]
[399466786,1766383840209,-500.0,0.00013698,2]
[399466787,1766383840219,-500.0,0.00013698,2]
[399466788,1766383840229,-500.0,0.00013698,2]
[399466789,1766383840239,-500.0,0.00013698,2]
[399466790,1766383840249,-500.0,0.00013698,2]
[399466791,1766383840258,-500.0,0.00013698,2]
[399466792,1766383840268,-500.0,0.00013698,2]
[399466793,1766383840278,-500.0,0.00013698,2]
[399466794,1766383840288,-500.0,0.00013698,2]
[399466795,1766383840298,-500.0,0.00013698,2]
[399466796,1766383840307,-500.0,0.00013698,2]
[399466797,1766383840316,-500.0,0.00013698,2]
[399466798,1766383840326,-547.81256791,0.00013698,2]
[399466799,1766383840335,-500.0,0.00013698,2]
[399466800,1766383840346,-500.0,0.00013698,2]
[399466801,1766383840356,-500.0,0.00013698,2]
[399466802,1766383840366,-504.51634156,0.00013698,2]
[399466803,1766383840381,-500.0,0.00013698,2]
[399466804,1766383840390,-500.0,0.00013698,2]
[399466805,1766383840399,-500.0,0.00013698,2]
[399466806,1766383840409,-500.0,0.00013698,2]
[399466807,1766383840418,-500.0,0.00013698,2]
[399466808,1766383840427,-500.0,0.00013698,2]
[399466809,1766383840437,-500.0,0.00013698,2]
[399466810,1766383840446,-503.72680128,0.00013698,2]
[399466811,1766383840455,-200.0,0.00013699,2]
[399466812,1766383840465,-612.93,0.00013699,2]
[399466813,1766383840475,-620.44,0.000137,2]
[399466814,1766383840484,-620.44,0.000137,2]
[399466815,1766383840494,-1000.0,0.00013776,2]
[399466816,1766383840503,-620.44,0.00013803,2]
[399466817,1766383840514,-620.44,0.00013803,2]
[399466818,1766383840527,-620.44,0.00013803,2]
[399466819,1766383840536,-500.0,0.00013812,2]
[399466820,1766383840546,-359.86568137,0.00013812,2]
[399466821,1766383840558,-500.0,0.00013812,2]
[399466822,1766383840569,-500.0,0.00013812,2]
[399466823,1766383840579,-500.0,0.00013812,2]
[399466824,1766383840590,-500.0,0.00013812,2]
[399466825,1766383840600,-500.0,0.00013812,2]
[399466826,1766383840610,-500.0,0.00013812,2]
[399466827,1766383840620,-500.0,0.00013812,2]
[399466828,1766383840631,-500.0,0.00013812,2]
[399466829,1766383840640,-354508.26527486,0.00013813,2]
[399466830,1766383840649,-1600.0,0.00013851,2]
[399466831,1766383840658,-500.0,0.00013887,2]
[399466832,1766383840667,-500.0,0.00013887,2]
[399466833,1766383840676,-500.0,0.00013887,2]
[399466834,1766383840686,-500.0,0.00013887,2]
[399466835,1766383840695,-500.0,0.00013887,2]
[399466836,1766383840704,-500.0,0.00013887,2]
[399466837,1766383840714,-500.0,0.00013887,2]
[399466839,1766383840723,-500.0,0.00013887,2]
[399466840,1766383840733,-500.0,0.00013887,2]
[399466841,1766383840743,-373.89365293,0.00013887,2]
[399466842,1766383840752,-2146.93,0.00013917,2]
[399466843,1766383840762,-500.0,0.00013936,2]
[399466844,1766383840773,-28242.37766081,0.0001397,2]
[399466845,1766383840785,-7683.37212936,0.00014115,2]
[399466846,1766383840794,-1000.0,0.00014191,2]
[399466847,1766383840804,-222.91830755,0.00014191,2]
[399466848,1766383840813,-562.43328901,0.00014191,2]
[399466849,1766383840823,-550.36391425,0.00014191,2]
[399466850,1766383840832,-1000.0,0.00014191,2]
[399466851,1766383840841,-1000.0,0.00014191,2]
[399466852,1766383840851,-537.36765375,0.00014191,2]
[399466853,1766383840860,-535.43855747,0.00014191,2]
[399466854,1766383840869,-1000.0,0.00014191,2]
[399466855,1766383840879,-1000.0,0.00014191,2]
[399466856,1766383840888,-1000.0,0.00014191,2]
[399466857,1766383840898,-1000.0,0.00014191,2]
[399466858,1766383840907,-1000.0,0.00014191,2]
[399466859,1766383840917,-1000.0,0.00014191,2]
[399466860,1766383840926,-1000.0,0.00014191,2]
[399466861,1766383840936,-1000.0,0.00014191,2]
[399466862,1766383840946,-1000.0,0.00014191,2]
[399466863,1766383840955,-1000.0,0.00014191,2]
[399466864,1766383840963,-1000.0,0.00014191,2]
[399466865,1766383840973,-235.68882783,0.00014191,2]
[399466866,1766383840982,-1000.0,0.00014191,2]
[399466867,1766383840992,-1000.0,0.00014191,2]
[399466868,1766383841001,-453.73344194,0.00014191,2]
[399466869,1766383841011,-1000.0,0.00014191,2]
[399466870,1766383841020,-1000.0,0.00014191,2]
[399466871,1766383841029,-1000.0,0.00014191,2]
[399466872,1766383841038,-1000.0,0.00014191,2]
[399466873,1766383841047,-1000.0,0.00014191,2]
[399466874,1766383841057,-1000.0,0.00014191,2]
[399466875,1766383841067,-1000.0,0.00014191,2]
[399466876,1766383841077,-484.24574485,0.00014191,2]
[399466877,1766383841086,-1000.0,0.00014191,2]
[399466878,1766383841095,-1000.0,0.00014191,2]
[399466879,1766383841105,-2146.93,0.00014191,2]
[399466880,1766383841123,-352.88004127,0.00014405,2]
[399466881,1766383841142,-222.79860004,0.00014405,2]
[399466882,1766383841152,-28242.37766081,0.00014458,2]
[399466883,1766383841168,-2146.93,0.00014465,2]
[399466884,1766383841186,-517.20935872,0.00014505,2]
[399466885,1766383841195,-500.0,0.00014505,2]
[399466886,1766383841204,-500.0,0.00014505,2]
[399466887,1766383841214,-500.0,0.00014505,2]
[399466888,1766383841223,-500.0,0.00014505,2]
[399466889,1766383841232,-500.0,0.00014505,2]
[399466890,1766383841242,-3301.98750385,0.0001451,2]
[399466891,1766383841251,-7683.37212936,0.00014579,2]
[399466892,1766383841260,-494.0,0.00014597,2]
[399466893,1766383841269,-823.0,0.00014597,2]
[399466894,1766383841279,-3292.0,0.00014641,2]
[399466895,1766383841288,-522.793359,0.00014652,2]
[399466896,1766383841298,-535.91773514,0.00014652,2]
[399466897,1766383841307,-500.0,0.00014652,2]
[399466898,1766383841316,-500.0,0.00014652,2]
[399466899,1766383841338,-500.0,0.00014738,2]
[399466900,1766383841357,-500.0,0.00014738,2]
[399466901,1766383841366,-500.0,0.00014738,2]
[399466902,1766383841377,-1500.0,0.00014739,2]
[399466903,1766383841387,-1001.38196086,0.00014739,2]
[399466904,1766383841398,-1500.0,0.00014739,2]
[399466905,1766383841409,-1097.93973627,0.00014739,2]
[399466906,1766383841419,-1500.0,0.00014739,2]
[399466907,1766383841429,-1500.0,0.00014739,2]
[399466908,1766383841440,-1500.0,0.00014739,2]
[399466909,1766383841451,-1500.0,0.00014739,2]
[399466910,1766383841463,-1159.366475,0.00014739,2]
[399466911,1766383841474,-1500.0,0.00014739,2]
[399466912,1766383841484,-1500.0,0.00014739,2]
[399466913,1766383841494,-1500.0,0.00014739,2]
[399466914,1766383841506,-1500.0,0.00014739,2]
[399466915,1766383841519,-304.17773207,0.00014739,2]
[399466916,1766383841529,-1500.0,0.00014739,2]
[399466917,1766383841538,-1500.0,0.00014739,2]
[399466918,1766383841548,-366.5623891,0.00014739,2]
[399466919,1766383841559,-1500.0,0.00014739,2]
[399466920,1766383841568,-1500.0,0.00014739,2]
[399466921,1766383841579,-1500.0,0.00014739,2]
[399466922,1766383841590,-1500.0,0.00014739,2]
[399466923,1766383841604,-437.07935653,0.00014739,2]
[399466924,1766383841614,-1500.0,0.00014739,2]
[399466925,1766383841624,-1500.0,0.00014739,2]
[399466926,1766383841633,-980.93651792,0.00014739,2]
[399466927,1766383841643,-2146.93,0.00014739,2]
[399466928,1766383841652,-151.0,0.00014784,2]
[399466929,1766383841662,-151.0,0.00014789,2]
[399466930,1766383841672,-226.5471914,0.000149,2]
[399466931,1766383841682,-28242.37766081,0.00014947,2]
[399466932,1766383841692,-2146.93,0.00015013,2]
[399466933,1766383841702,-209.86192336,0.00015025,4]
[399466934,1766383841711,-7683.37212936,0.00015043,2]
[399466935,1766383841721,-277.18,0.00015068,2]
[399466936,1766383841730,-1167.2591655,0.00015287,2]
[399466937,1766383841741,-1937.14852253,0.00015287,2]
[399466938,1766383841751,-2000.0,0.00015287,2]
[399466939,1766383841761,-2000.0,0.00015287,2]
[399466940,1766383841771,-2000.0,0.00015287,2]
[399466941,1766383841781,-1159.1358272,0.00015287,2]
[399466942,1766383841791,-2002.21103807,0.00015287,2]
[399466943,1766383841801,-2000.0,0.00015287,2]
[399466944,1766383841811,-2000.0,0.00015287,2]
[399466945,1766383841821,-959.78950383,0.00015287,2]
[399466946,1766383841831,-1890.7850892,0.00015287,2]
[399466947,1766383841841,-2000.0,0.00015287,2]
[399466948,1766383841850,-2000.0,0.00015287,2]
[399466949,1766383841860,-1505.45508162,0.00015287,2]
[399466950,1766383841869,-1130.28190868,0.00015287,2]
[399466951,1766383841879,-2072.96293358,0.00015287,2]
[399466952,1766383841889,-504.58016272,0.00015287,2]
[399466953,1766383841899,-2000.0,0.00015287,2]
[399466954,1766383841909,-2146.93,0.00015287,2]
[399466955,1766383841919,-160.68439963,0.00015288,2]
[399466956,1766383841930,-158.67617392,0.00015288,2]
[399466957,1766383841939,-155.74604872,0.00015288,2]
[399466958,1766383841949,-157.04290017,0.00015288,2]
[399466959,1766383841959,-157.86754475,0.00015288,2]
[399466960,1766383841968,-152.87156213,0.00015288,2]
[399466961,1766383841978,-156.34624358,0.00015288,2]
[399466962,1766383841989,-2235.56369574,0.00015293,2]
[399466963,1766383841998,-1000.0,0.00015306,2]
[399466964,1766383842008,-1600.0,0.0001539,2]
[399466965,1766383842018,-28242.37766081,0.00015435,2]
[399466966,1766383842027,-500.0,0.00015493,2]
[399466967,1766383842037,-7683.37212936,0.00015507,2]
[399466968,1766383842046,-2146.93,0.00015561,2]
[399466969,1766383842056,-222.79860004,0.00015603,2]
[399466970,1766383842065,-352.88004125,0.00015653,2]
[399466971,1766383842075,-876.62447868,0.00015728,2]
[399466972,1766383842084,-1411.68011212,0.00015747,2]
[399466973,1766383842094,-1507.00799583,0.00015835,2]
[399466974,1766383842104,-2500.0,0.00015835,2]
[399466975,1766383842113,-2506.61121475,0.00015835,2]
[399466976,1766383842123,-2500.0,0.00015835,2]
[399466977,1766383842133,-2090.93800386,0.00015835,2]
[399466978,1766383842142,-2500.0,0.00015835,2]
[399466979,1766383842152,-800.59467454,0.00015835,2]
[399466980,1766383842162,-28242.37766081,0.00015923,2]
[399466981,1766383842171,-7683.37212936,0.00015972,2]
[399466982,1766383842180,-702.0,0.0001604,2]
[399466983,1766383842190,-2966.0,0.00016084,2]
[399466984,1766383842199,-4609.0,0.00016105,2]
[399466985,1766383842209,-2146.93,0.00016108,2]
[399466986,1766383842218,-500.0,0.00016149,2]
[399466987,1766383842228,-352.57653345,0.00016149,2]
[399466988,1766383842239,-151.0,0.00016149,2]
[399466989,1766383842249,-151.0,0.00016149,2]
[399466990,1766383842259,-156.587,0.00016149,2]
[399466991,1766383842270,-162.380719,0.00016149,2]
[399466992,1766383842279,-200.0,0.00016149,2]
[399466993,1766383842290,-153.6660154,0.00016149,2]
[399466994,1766383842299,-207.4,0.00016149,2]
[399466995,1766383842309,-215.0738,0.00016149,2]
[399466996,1766383842319,-223.0315306,0.00016149,2]
[399466997,1766383842328,-231.28369723,0.00016149,2]
[399466998,1766383842338,-239.84119403,0.00016149,2]
[399466999,1766383842347,-248.71531821,0.00016149,2]
[399467000,1766383842356,-257.91778498,0.00016149,2]
[399467001,1766383842366,-267.46074303,0.00016149,2]
[399467002,1766383842375,-500.0,0.0001615,2]
[399467003,1766383842384,-1000.0,0.000162,2]
[399467004,1766383842394,-1085.0344587,0.0001621,2]
[399467005,1766383842404,-2966.0,0.00016289,2]
[399467006,1766383842413,-2146.93,0.00016382,2]
[399467007,1766383842422,-353.92874992,0.00016383,2]
[399467008,1766383842431,-3000.0,0.00016383,2]
[399467009,1766383842440,-2000.0,0.00016383,2]
[399467010,1766383842449,-28242.37766081,0.00016412,2]
[399467011,1766383842459,-1490.09817043,0.00016428,2]
[399467012,1766383842469,-7683.37212936,0.00016436,2]
[399467013,1766383842478,-500.0,0.00016437,2]
[399467014,1766383842487,-500.0,0.00016437,2]
[399467015,1766383842497,-500.0,0.00016437,2]
[399467016,1766383842506,-500.0,0.00016437,2]
[399467017,1766383842518,-500.0,0.00016437,2]
[399467018,1766383842528,-507.5550191,0.00016437,2]
[399467019,1766383842537,-508.44264372,0.00016437,2]
[399467020,1766383842546,-150.0,0.00016437,2]
[399467021,1766383842800,-277.18,0.00016438,2]
[399467022,1766383842813,-800.66640866,0.00016438,2]
[399467023,1766383842823,-500.0,0.00016472,2]
[399467024,1766383842833,-500.23459526,0.00016473,2]
[399467025,1766383842843,-500.89063362,0.00016473,2]
[399467026,1766383842853,-162.4264826,0.00016473,2]
[399467027,1766383842863,-500.92519729,0.00016473,2]
[399467028,1766383842872,-500.59656143,0.00016473,2]
[399467029,1766383842882,-570.44343091,0.00016473,2]
[399467030,1766383842893,-500.25404697,0.00016473,2]
[399467031,1766383842903,-500.71610448,0.00016473,2]
[399467032,1766383842913,-500.0,0.00016473,2]
[399467033,1766383842922,-500.88851044,0.00016473,2]
[399467034,1766383842932,-500.5380025,0.00016473,2]
[399467035,1766383842941,-500.89704022,0.00016473,2]
[399467036,1766383842951,-334.69874754,0.00016473,2]
[399467037,1766383842961,-500.0,0.00016473,2]
[399467038,1766383842971,-556.12570782,0.00016473,2]
[399467039,1766383842981,-500.85006285,0.00016473,2]
[399467041,1766383842990,-639.90034145,0.00016473,2]
[399467042,1766383842999,-500.93365607,0.00016473,2]
[399467043,1766383843009,-500.14110793,0.00016473,2]
[399467044,1766383843018,-500.26932841,0.00016473,2]
[399467045,1766383843028,-500.0,0.00016473,2]
[399467046,1766383843037,-500.23431497,0.00016473,2]
[399467047,1766383843047,-500.364387,0.00016473,2]
[399467048,1766383843057,-500.0,0.00016473,2]
[399467049,1766383843067,-500.0,0.00016473,2]
[399467050,1766383843076,-160.22953204,0.00016473,2]
[399467051,1766383843086,-500.23816043,0.00016473,2]
[399467052,1766383843095,-500.31559723,0.00016473,2]
[399467053,1766383843105,-150.2134934,0.00016473,2]
[399467054,1766383843115,-160.22953259,0.00016473,2]
[399467055,1766383843124,-519.00415051,0.00016473,2]
[399467056,1766383843134,-500.0,0.00016473,2]
[399467057,1766383843143,-500.0,0.00016473,2]
[399467058,1766383843153,-160.23136935,0.00016473,2]
[399467060,1766383843162,-160.23033873,0.00016473,2]
[399467061,1766383843172,-500.84177563,0.00016473,2]
[399467062,1766383843183,-500.84493932,0.00016473,2]
[399467063,1766383843194,-500.53011343,0.00016473,2]
[399467064,1766383843203,-500.63864721,0.00016473,2]
[399467065,1766383843213,-500.28027426,0.00016473,2]
[399467066,1766383843223,-500.0,0.00016473,2]
[399467067,1766383843232,-500.0,0.00016473,2]
[399467068,1766383843242,-500.23422882,0.00016473,2]
[399467069,1766383843251,-182.65808094,0.00016473,2]
[399467070,1766383843259,-500.40105858,0.00016473,2]
[399467071,1766383843268,-500.4866391,0.00016473,2]
[399467072,1766383843277,-500.76356067,0.00016473,2]
[399467073,1766383843287,-160.22398459,0.00016473,2]
[399467074,1766383843297,-500.0,0.00016473,2]
[399467075,1766383843307,-500.0,0.00016473,2]
[399467076,1766383843317,-500.0,0.00016473,2]
[399467077,1766383843327,-500.0,0.00016473,2]
[399467078,1766383843336,-500.0,0.00016473,2]
[399467079,1766383843346,-500.0,0.00016473,2]
[399467080,1766383843355,-500.0,0.00016473,2]
[399467081,1766383843365,-500.0,0.00016473,2]
[399467082,1766383843374,-500.47037435,0.00016473,2]
[399467083,1766383843384,-577.70558009,0.00016473,2]
[399467084,1766383843394,-500.0,0.00016473,2]
[399467085,1766383843404,-500.0,0.00016473,2]
[399467086,1766383843413,-500.19873097,0.00016473,2]
[399467087,1766383843423,-500.0,0.00016473,2]
[399467088,1766383843434,-500.0,0.00016473,2]
[399467089,1766383843444,-2966.0,0.0001648,2]
[399467090,1766383843454,-4670.0,0.00016512,2]
[399467091,1766383843465,-1000.0,0.000166,2]
[399467092,1766383843476,-2146.93,0.00016656,2]
[399467093,1766383843487,-3018.19191469,0.0001666,2]
[399467094,1766383843497,-201.47691223,0.00016744,2]
[399467095,1766383843506,-4670.0,0.00016763,2]
[399467096,1766383843519,-1000.0,0.000168,2]
[399467097,1766383843529,-222.79860004,0.000168,2]
[399467098,1766383843539,-500.0,0.00016829,2]
[399467099,1766383843549,-500.0,0.00016829,2]
[399467100,1766383843561,-7000.0,0.0001683,2]
[399467101,1766383843570,-1000.0,0.00016837,2]
[399467102,1766383843580,-1002.5,0.00016845,2]
[399467103,1766383843591,-200.0,0.00016863,2]
[399467104,1766383843600,-200.0,0.00016864,2]
[399467105,1766383843610,-200.0,0.00016864,2]
[399467106,1766383843620,-200.0,0.00016864,2]
[399467107,1766383843629,-200.0,0.00016864,2]
[399467108,1766383843639,-500.0,0.0001689,2]
[399467109,1766383843649,-10000.0,0.000169,2]
[399467110,1766383843658,-272.20622186,0.000169,2]
[399467111,1766383843667,-28242.37766081,0.000169,2]
[399467112,1766383843677,-352.88004125,0.000169,2]
[399467113,1766383843686,-714.74572409,0.000169,2]
[399467114,1766383843695,-7683.37212936,0.000169,2]
[399467115,1766383843706,-255.64335402,0.000169,2]
[399467116,1766383843716,-10941.0,0.000169,2]
[399467117,1766383843725,-1600.0,0.00016929,2]
[399467118,1766383843735,-2146.93,0.0001693,2]
[399467119,1766383843746,-736.82314427,0.00016931,2]
[399467120,1766383843755,-4670.0,0.00016947,2]
[399467121,1766383843764,-7000.0,0.0001695,2]
[399467122,1766383843774,-304.0,0.00016959,2]
[399467123,1766383843784,-150.0,0.00016973,2]
[399467124,1766383843794,-500.0,0.00016973,2]
[399467125,1766383843803,-150.0,0.00016973,2]
[399467126,1766383843813,-1490.09817043,0.0001699,2]
[399467127,1766383843823,-1490.09817043,0.0001699,2]
[399467128,1766383843832,-151.0,0.00016996,2]
[399467129,1766383843841,-151.0,0.00016997,2]
[399467130,1766383843851,-451.43777448,0.00016998,2]
[399467131,1766383843860,-500.0,0.00016998,2]
[399467132,1766383843870,-500.0,0.00016998,2]
[399467133,1766383843879,-557.08917325,0.00016998,2]
[399467134,1766383843889,-500.0,0.00016998,2]
[399467135,1766383843899,-507.17995557,0.00016998,2]
[399467136,1766383843908,-20351.295868,0.00016999,2]
[399467137,1766383843918,-1688.3493702,0.00016999,2]
[399467138,1766383843927,-163207.7767215,0.00016999,2]
[399467139,1766383843937,-300.0,0.00016999,2]
[399467140,1766383843946,-671.19063169,0.00016999,2]